Cogmind - Beta 13 @@@ ROGUE MODE // 2024.06.15 @ 17:32:34 Player: QXander Result: Destroyed by WP-2FF(R) with Subdweller Beam Cannon Performance ------------- Evolutions (0) 0 Regions Visited (3) 600 Robots Destroyed (16) 80 Value Destroyed (402) 402 Prototype IDs (0) 0 Alien Tech Used (0) 0 Bonus (0) 0 TOTAL SCORE: 1082 Bonus ------- None Cogmind --------- Core Integrity 0/250 Matter 264/300 Energy 93/125 System Corruption 0% Temperature Cool (9) Movement Walking (190) Ox1 Location -10/Subcaves Parts ------- > --- POWER (1) -------- Light Ion Engine > --- PROPULSION (2) --- Aluminum Leg Aluminum Leg > --- UTILITY (2) ------ Scrap Shield > --- WEAPON (2) ------- Ripper > --- INVENTORY (5) ---- Aluminum Leg Small Storage Unit Terrain Scanner Peak State ------------ > --- POWER ------------ Ion Engine > --- PROPULSION ------- Aluminum Leg Aluminum Leg > --- UTILITY ---------- Small Storage Unit Visual Processing Unit > --- WEAPON ----------- Assault Rifle Ripper > --- INVENTORY -------- Light Ion Engine Aluminum Leg Aluminum Leg Terrain Scanner Mining Laser [Rating: 11] Favorites ----------- Power Ion Engine Engine Ion Engine Propulsion Aluminum Leg Leg Aluminum Leg Wheel Wheel Utility Small Storage Unit Device Terrain Scanner Storage Small Storage Unit Processor Signal Interpreter Protection Medium Armor Plating Weapon Assault Rifle Energy Gun Beam Rifle Ballistic Gun Assault Rifle Special Weapon Mining Laser Slashing Weapon Ripper Build | -11 -10 -10 -10 ------- Run | Yrd Mat Min Sub Slots Evolved . | . . . . Power . | . . . . Propulsion . | . . . . Utility . | . . . . Weapon . | . . . . Parts Attached 30 | 6 14 3 7 Power 5 | 1 3 . 1 Engine 5 | 1 3 . 1 Core . | . . . . Reactor . | . . . . Propulsion 9 | 2 4 1 2 Treads . | . . . . Leg 7 | 2 2 1 2 Wheel 2 | . 2 . . Hover . | . . . . Flight . | . . . . Utility 8 | 1 4 . 3 Device 1 | . 1 . . Storage 3 | 1 1 . 1 Processor 2 | . 1 . 1 Hackware . | . . . . Protection 2 | . 1 . 1 Artifact . | . . . . Weapon 8 | 2 3 2 1 Energy Gun 1 | . 1 . . Energy Cannon . | . . . . Ballistic Gun 5 | 2 2 1 . Ballistic Cannon . | . . . . Launcher . | . . . . Special Weapon 1 | . . . 1 Impact Weapon . | . . . . Slashing Weapon 1 | . . 1 . Piercing Weapon . | . . . . Special Melee Weapon . | . . . . Unidentified Prototypes . | . . . . Parts Lost 7 | . 3 . 4 Power 1 | . . . 1 Propulsion 3 | . 2 . 1 Utility 1 | . 1 . . Weapon 2 | . . . 2 Highest Loss Streak 4 | . 3 . 4 To Critical Strikes . | . . . . Average Slot Usage (%) 96 | . 94 100 96 Engine 13 | . 14 14 13 Leg 21 | . 14 28 27 Wheel 4 | . 9 . . Storage 13 | . 14 14 13 Processor 11 | . 8 14 12 Protection 1 | . 2 . . Energy Gun 1 | . 4 . . Ballistic Gun 23 | . 23 26 12 Slashing Weapon 2 | . . 1 14 Naked Turns . | . . . . Heaviest Build 20 | 11 20 15 15 Greatest Support 26 | 20 26 20 20 Greatest Overweight (x) 4 | . 4 . . Average Overweight (x) . | . . . . Largest Inventory Capacity 8 | 8 8 8 8 Average Capacity 7 | 7 8 8 7 Most Carried 8 | 5 8 8 8 Average Carried 5 | 2 5 7 6 Final Capacity 8 | 8 8 8 5 Final Carried 7 | 2 7 7 3 Class Distribution -------------------- 66% | Scavenger-Mutant 33% | Mutant Dominant Class ---------------- Mutant | -10/Materials Scavenger-Mutant | -10/Mines Scavenger-Mutant | -10/Subcaves Resources | -11 -10 -10 -10 ----------- Run | Yrd Mat Min Sub Matter Collected 607 | 224 207 125 51 Remotely . | . . . . Salvage Created 420 | . 295 92 33 Parts 31 | . 24 6 1 Haulers Intercepted . | . . . . Recyclers Shooed . | . . . . Parts Field Recycled . | . . . . Retrieved Matter . | . . . . Parts Self-Destructed 4 | . . . 4 Prevented . | . . . . Kills | -11 -10 -10 -10 ------- Run | Yrd Mat Min Sub Combat Hostiles Destroyed 14 | . 11 2 1 Guns 12 | . 9 2 1 AOE 2 | . 2 . . Classes Destroyed 5 | . 4 . 1 Builder 1 | . 1 . . Watcher 1 | . 1 . . Swarmer 6 | . 6 . . Grunt 7 | . 5 2 . Subdweller 1 | . . . 1 Best Kill Streak 5 | . 5 2 1 Combat Bots Only 5 | . 5 2 1 Max Kills in Single Turn 2 | . 2 1 1 Gunslinging . | . . . . Exploded 2 | . 2 . . Melee . | . . . . Uniques/NPCs Destroyed . | . . . . Combat | -11 -10 -10 -10 -------- Run | Yrd Mat Min Sub Hostile Shots Fired 131 | . 90 12 29 Missed 38 | . 21 7 10 Damage Taken 1391 | . 768 83 540 Core 253 | . 122 . 131 Absorbed by Shields . | . . . . Core Remaining (%) 100 | 100 . . . Volleys Fired 51 | . 38 12 1 Largest 2 | . 2 2 1 Hottest 76 | . 76 40 20 Shots Fired 101 | . 76 24 1 Gun 101 | . 76 24 1 Cannon . | . . . . Launcher . | . . . . Special . | . . . . Kinetic 76 | . 51 24 1 Thermal 25 | . 25 . . Explosive . | . . . . Electromagnetic . | . . . . Robot Hit Streak 10 | . 10 3 2 Robot Miss Streak 4 | . 4 3 . Penetration Max . | . . . . Secondary Targets 2 | . 2 . . Max Gunslinging Chain 1 | . 1 . . Shots Hit Robots 53 | . 43 7 3 Core Hits 21 | . 17 3 1 Critical Kills . | . . . . Critical Parts Destroyed . | . . . . Critical Strikes 2 | . 2 . . Burn 2 | . 2 . . Melee Attacks 3 | . . . 3 Impact . | . . . . Slashing 3 | . . . 3 Piercing . | . . . . Sneak Attacks . | . . . . Combat Hostiles . | . . . . Follow-up Attacks . | . . . . Damage Inflicted 964 | . 821 68 75 Guns 652 | . 572 68 12 Cannons . | . . . . Explosions 249 | . 249 . . Melee 63 | . . . 63 Ramming . | . . . . Kinetic 465 | . 385 68 12 Thermal 187 | . 187 . . Explosive 249 | . 249 . . Electromagnetic . | . . . . Impact . | . . . . Slashing 63 | . . . 63 Piercing . | . . . . Highest Corruption . | . . . . Average Corruption . | . . . . Corruption Purged . | . . . . Corruption Blocked . | . . . . Overload Shots . | . . . . Overflow Damage 22 | . 22 . . Projectiles . | . . . . Explosions 22 | . 22 . . Melee . | . . . . Knockbacks . | . . . . Impact . | . . . . Kinetic . | . . . . Secondary . | . . . . Self-Inflicted Damage 177 | . 177 . . Shots 2 | . 2 . . Rammed . | . . . . Targets Rammed . | . . . . Kicked . | . . . . Crushed . | . . . . Highest Temperature 257 | . 257 33 . Average Temperature 59 | . 66 13 . Received Heat Transfer 279 | . 72 81 126 Siege Activations . | . . . . Robots Corrupted . | . . . . Combat Hostiles . | . . . . Parts Fried . | . . . . Impact Corruptions . | . . . . Robots Melted . | . . . . Combat Hostiles . | . . . . Parts Melted 1 | . 1 . . Heat Transferred 629 | . 629 . . Parts Sabotaged . | . . . . Parts Stolen . | . . . . Parts Stripped . | . . . . Power Chain Reactions . | . . . . Alert | -11 -10 -10 -10 ------- Run | Yrd Mat Min Sub Peak Influence 320 | . 320 58 . Initial 5 | . . 5 . Average 60 | . 110 8 . Maximum Alert Level 1 | . 1 . . Low Security (%) 86 | 100 73 100 . Level 1 13 | . 26 . . Level 2 . | . . . . Level 3 . | . . . . Level 4 . | . . . . Level 5 . | . . . . High Security . | . . . . Max Security . | . . . . Squads Dispatched 4 | . 4 . . Investigation 1 | . 1 . . Extermination . | . . . . Reinforcement 3 | . 3 . . Assault . | . . . . Garrison . | . . . . Intercept . | . . . . Searches Triggered . | . . . . Construction Impeded . | . . . . Haulers Reinforced . | . . . . Active Scanning Responses . | . . . . Cargo Convoy Interrupts . | . . . . Stealth | -11 -10 -10 -10 --------- Run | Yrd Mat Min Sub Distress Signals 1 | . 1 . . Communications Jammed . | . . . . Distress Signals . | . . . . Times Spotted 41 | . 27 2 12 Peak Tracking Total 11 | . 7 2 11 Tactical Retreats 3 | . 3 . . Traps | -11 -10 -10 -10 ------- Run | Yrd Mat Min Sub Traps Triggered . | . . . . Indirectly . | . . . . Trap Hack Attempts . | . . . . Triggered . | . . . . Disarmed . | . . . . Reprogrammed . | . . . . Reused . | . . . . Traps Extracted . | . . . . Installed . | . . . . Triggered . | . . . . Machines | -11 -10 -10 -10 ---------- Run | Yrd Mat Min Sub Machines Disabled 3 | . 2 1 . Max in Single Turn 2 | . 2 1 . Machines Repaired . | . . . . Machines Dismantled . | . . . . Machines Sabotaged . | . . . . Overloaded Fab Kills . | . . . . Hacking | -11 -10 -10 -10 --------- Run | Yrd Mat Min Sub Machines Accessed 5 | . 5 . . Terminals 4 | . 4 . . Fabricators . | . . . . Repair Stations . | . . . . Recycling Units 1 | . 1 . . Scanalyzers . | . . . . Garrison Access . | . . . . Total Hacks 16 | . 16 . . Successful 9 | . 9 . . Failed 7 | . 7 . . Catastrophic 1 | . 1 . . Database Lockouts . | . . . . Manual . | . . . . Terminals 15 | . 15 . . Fabricators . | . . . . Repair Stations . | . . . . Recycling Units 1 | . 1 . . Scanalyzers . | . . . . Garrison Access . | . . . . Terminal Hacks 8 | . 8 . . Branch Access Points 1 | . 1 . . Alert Level 3 | . 3 . . Unreport Threat 2 | . 2 . . Locate Traps 2 | . 2 . . Fabricator Hacks . | . . . . Repair Station Hacks . | . . . . Recycling Unit Hacks 1 | . 1 . . Report Inventory 1 | . 1 . . Scanalyzer . | . . . . Garrison Access Hacks . | . . . . Unauthorized Hacks . | . . . . Terminals . | . . . . Fabricators . | . . . . Repair Stations . | . . . . Recycling Units . | . . . . Scanalyzers . | . . . . Garrison Access . | . . . . Data Cores Recovered . | . . . . Used . | . . . . Hacking Detections 4 | . 4 . . Full Trace Events 1 | . 1 . . Feedback Events . | . . . . Feedback Blocked . | . . . . Robot Schematics Acquired . | . . . . Robots Built . | . . . . Authchips . | . . . . Time . | . . . . Total Robot Build Rating . | . . . . Part Schematics Acquired . | . . . . Parts Built . | . . . . Authchips . | . . . . Time . | . . . . Total Part Build Rating . | . . . . Parts Repaired . | . . . . Time . | . . . . Parts Recycled . | . . . . Recycled Matter . | . . . . Retrieved Matter . | . . . . Retrieved Components . | . . . . Parts Scanalyzed . | . . . . Part Schematics Acquired . | . . . . Parts Damaged . | . . . . Bothacking | -11 -10 -10 -10 ------------ Run | Yrd Mat Min Sub Used RIF Installer . | . . . . Robots Hacked . | . . . . Non-combat . | . . . . Combat . | . . . . Robot Hacks Applied . | . . . . Relay Couplers Released . | . . . . Fabnet Peak Effective % . | . . . . Robots Rewired . | . . . . Allies Hacked . | . . . . Hacks Repelled . | . . . . Allies | -11 -10 -10 -10 -------- Run | Yrd Mat Min Sub Total Allies 1 | . . 1 . Largest Group 1 | . . 1 . Highest-Rated Group 31 | . . 31 . Highest-Rated Ally 31 | . . 31 . Total Orders . | . . . . Ally Attacks 5 | . . 5 . Total Damage 61 | . . 61 . Kills . | . . . . Allies Corrupted . | . . . . Allies Melted . | . . . . Intel | -11 -10 -10 -10 ------- Run | Yrd Mat Min Sub Robot Analysis Total . | . . . . Derelict Logs Recovered 2 | . . 1 1 Drone Launches . | . . . . Drone Recoveries . | . . . . Exploration | -11 -10 -10 -10 ------------- Run | Yrd Mat Min Sub Turns Passed 2134 | 70 951 845 268 Spaces Moved 1631 | 53 715 667 196 Core 36 | 10 26 . . Treads . | . . . . Legs 1260 | 43 354 667 196 Wheels 335 | . 335 . . Hover . | . . . . Flight . | . . . . Fastest Speed 50 | 50 90 120 120 Average Speed 115 | 106 111 120 120 Slowest Speed 250 | 120 250 120 120 Overloaded Moves . | . . . . Propulsion Burnouts . | . . . . Robots Hopped . | . . . . Cave-ins Triggered . | . . . . Exploration Rate (%) 45 | 3 75 94 10 Regions Visited 3 Branch Regions 2 Pre-discovered Areas . | . . . . Known Exits Taken 2 | . 1 1 . Unknown Exits Taken 1 | 1 . . . Scrap Searched 2 | . . 2 . Spaces Dug . | . . . . Terrain Destroyed 41 | . 41 . . Melee . | . . . . Projectile . | . . . . AOE 41 | . 41 . . Terrain Rammed . | . . . . Walls Destroyed . | . . . . Machines Disabled . | . . . . Actions | -11 -10 -10 -10 --------- Run | Yrd Mat Min Sub Total 1785 | 66 800 691 228 Wait 16 | . 11 . 5 Move 1628 | 52 714 666 196 Hop . | . . . . Pick Up 35 | 8 14 5 8 Fast Attach . | . . . . Attach 22 | 6 9 1 6 Detach 7 | . 4 . 3 Swap 8 | . 5 2 1 Drop 15 | . 5 5 5 Fire 51 | . 38 12 1 Melee 3 | . . . 3 Ram . | . . . . Kick . | . . . . Crush . | . . . . Escape Stasis . | . . . . Rewire . | . . . . Trap . | . . . . Miscellaneous . | . . . . Route ------- -11/Scrapyard -10/Materials (discovered 4 exits: *Mat x3 / *Min) -10/Mines (discovered 2 exits: *Mat / *Sub) -10/Subcaves (discovered 1 exit: Rec) History --------- Turn | Location | Event 9 | -11/Scrapyard | Discovered new exit (range 16) 71 | -11/Scrapyard | Entered Materials 154 | -10/Materials | Discovered new exit (range 11) 295 | -10/Materials | Lost 3 parts (2n1u) 311 | -10/Materials | Build established: Mutant 439 | -10/Materials | Discovered new exit (range 13) 525 | -10/Materials | Identified exit to Materials 921 | -10/Materials | Discovered exit to Materials (range 16) 988 | -10/Materials | Identified exit to Mines 1005 | -10/Materials | Build established: Scavenger-Mutant 1022 | -10/Materials | Entered Mines 1096 | -10/Mines | Learned Materials security intel 1304 | -10/Mines | Discovered exit to Materials (range 5) 1305 | -10/Mines | Received a Mining Laser from a helpful Derelict 1770 | -10/Mines | A weapon hastily lodged in a ceiling crevice suddenly fell to the ground 1852 | -10/Mines | Discovered new exit (range 8) 1864 | -10/Mines | Identified exit to Subcaves 1867 | -10/Mines | Entered Subcaves 2072 | -10/Subcaves | Identified exit to Recycling 2116 | -10/Subcaves | Ambushed by swarm of Subdwellers 2116 | -10/Subcaves | Ambushed by Subdwellers from Twisted Machinery 2116 | -10/Subcaves | Ambushed by Subdwellers from Twisted Machinery 2116 | -10/Subcaves | Ambushed by Subdwellers from Twisted Machinery 2116 | -10/Subcaves | Ambushed by Subdwellers from Twisted Machinery 2116 | -10/Subcaves | Ambushed by Subdwellers from Twisted Machinery 2116 | -10/Subcaves | Ambushed by Subdwellers from Twisted Machinery 2117 | -10/Subcaves | Core integrity fell below 50% 2132 | -10/Subcaves | Core integrity fell below 20% 2135 | -10/Subcaves | Destroyed by WP-2FF(R) with Subdweller Beam Cannon Last Messages --------------- Shield. HV Slug penetrates Wall. 6T-SZJ(h) suffers critical hit (Destroy). IN-X99(R) affixes Scrap Shield Fragment to Scrap Shield. 5Q-6DS(R) affixes Scrap Shield Fragment to Scrap Shield. WQ-3T4(R) destroyed. XK-B4Q(R) affixes Scrap Shield Fragment to Scrap Shield. KZ-YVS(R) affixes Scrap Shield Fragment to Scrap Shield. Mining Laser destroyed. KZ-YVS(R) destroyed. N0-OU7(g) destroyed. Critical hit (Burn: +37). Subatomizers dissect the Sub. Monowheel. Discarded Visual Processing Unit. XK-B4Q(R) destroyed. GC-MOV(g) destroyed. Map ----- +----------------------------------------------------+ | ???????# #?### ##???????????? | | ???????# ### & #???????????? | | ???????# ## ## ###???????????? | | ???????# ##? #?????????????? | | ??????## ##?#?????????????? | | ??????# ## #???????????????? | | ??????# ### #???????????????? | | ??????## ### #???????????????? | | ???????# #?# ### ## #???????????? | | ???????## #?# #?# #### ##???????????? | | ????????#### #?## ?# ##?###????????????? | | ?????????#?#########?; ## #????????????????? | | ?????????# # # # ###; ;;# #????????????????? | | ?????????# ;; #????????????????? | | ?????????# ##????????????????? | | ?????????# ## #?####????????????? | | ?????????# ?## g ### ##???????????? | | ?????????# ### = ####????????? | | ?????????## %%! ##???????? | | ?????????# ###?????? | | ?????????## ### #?????? | | ?????????????## ####?????? | | ????????????## #### ##????????? | | ????????????# ##??##### ##?????????? | | ????????????## ##???????###??????????? | | ?????????????## ## @ ;#????????????????????? | | ??????????????## ?##; R&R!##???????????????????? | | ???????????????# ?#;% h%&%&#???????????????????? | | ???????????????## ?##;! R%RR!#???????????????????? | | ????????????????##?#; %!!=[!##???????????????????? | | ???????????????????## =;*%!=#????????????????????? | | ?????????????????? ;;;!; #????????????????????? | | ??????????????? ##!!##????????????????????? | | ??????????????# ?####?????????????????????? | | ??????????????####### ??????????????????????????? | | ????????????????????## ??????????????????????????? | | ?????????????????????# ??????????????????????????? | | ?????????????????????# ??????????????????????????? | | ????????????????????? ??????????????????????????? | | ????????????????????? ??????????????????????????? | | ?????????????????????# ??????????????????????????? | | ????????????????????? ???????????????????????????? | | ????????????????????? ???????????????????????????? | | ????????????????????? ???????????????????????????? | | ????????????????????? ???????????????????????????? | | ?????????????????????????????????????????????????? | | ?????????????????????????????????????????????????? | | ?????????????????????????????????????????????????? | | ?????????????????????????????????????????????????? | | ?????????????????????????????????????????????????? | +----------------------------------------------------+ Best States ------------- Heat Dissipation 25 Energy Generation 10 Energy Capacity 250 Matter Stores 300 Matter Capacity 300 Sight Range 18 Terrain Scan Range 14 Terrain Scan Density 10 Armor Coverage 225 Evasion (%) 55 Item Schematics ----------------- None Robot Schematics ------------------ None Fabricated ------------ Nothing Alien Tech Used ----------------- None Achievements -------------- None Challenges ------------ None Game ------ Seed HelicalReinforcedNanovents Manual? 0 Play Time 00:18:37 Cumulative 9.1 hours Start 2024.06.15 @ 17:16:51 End 2024.06.15 @ 17:32:34 Sessions 1 Manual Loads 0 Difficulty Rogue Special Mode None Game No. 12 Rogue 12 Adventurer 0 Explorer 0 Win Type - Total 0 Types 0/0/0/0/0/0/0/0/0 Lore% 14 Gallery% 16 Achievement% 12 Wizard Run 0 Options --------- Layout 1 ASCII 0 Keyboard 1 Movement Arrows Keybinds 0 Fullscreen 1 Font 24/Smallcaps Map View 50x35 Zoom Use 0% Tactical HUD 0 Map Filters NONE Filters NONE Steam 1 RUN: b384cee2-b803-403f-a15f-6e8ffa711f0d